bitfinex/quotes_BTCUSD_20240927
["timestamp","ask_amount","ask_price","bid_price","bid_amount"]
[1727444323052,0.023,65539.0,65529.0,0.025828]
[1727444323053,0.152601,65530.0,65529.0,0.025828]
[1727444323277,0.30788894,65530.0,65529.0,0.025828]
[1727444323499,0.62316747,65530.0,65529.0,0.025828]
[1727444324874,0.63516747,65530.0,65529.0,0.025828]
[1727444325586,0.64416747,65530.0,65529.0,0.025828]
[1727444327206,0.61718762,65530.0,65528.0,0.0104216]
[1727444327424,0.175615,65524.0,65507.0,0.08]
[1727444327672,0.33090294,65524.0,65511.0,0.30529]
[1727444327905,0.33090294,65524.0,65514.0,0.610552]
[1727444328170,0.33090294,65524.0,65514.0,0.305275]
[1727444328403,0.33090294,65524.0,65517.0,0.305262]
[1727444328943,0.33090294,65524.0,65518.0,0.152629]
[1727444329192,0.33090294,65524.0,65517.0,0.305262]
[1727444329193,0.30790294,65524.0,65520.0,0.152624]
[1727444329438,0.30790294,65524.0,65519.0,0.152625]
[1727444329694,0.30790294,65524.0,65518.0,0.152629]
[1727444329938,0.31390294,65524.0,65518.0,0.152629]
[1727444330421,0.31390294,65524.0,65521.0,0.152622]
[1727444330422,0.16128794,65524.0,65521.0,0.152622]
[1727444330631,0.31390294,65524.0,65519.0,0.152625]
[1727444330850,0.31690294,65524.0,65518.0,0.152628]
[1727444331050,0.31690294,65524.0,65517.0,0.152631]
[1727444331329,0.31690294,65524.0,65514.0,0.305275]
[1727444331564,0.31690294,65524.0,65515.0,0.152635]
[1727444331789,0.31690294,65524.0,65515.0,0.152636]
[1727444332043,0.31690294,65524.0,65514.0,0.152639]
[1727444332228,0.48594895,65524.0,65513.0,0.000828]
[1727444332445,0.33990294,65524.0,65513.0,0.000828]
[1727444332702,0.63218147,65524.0,65513.0,0.000828]
[1727444333145,0.33390294,65524.0,65515.0,0.152636]
[1727444333394,0.33390294,65524.0,65513.0,0.000828]
[1727444333623,0.34490294,65524.0,65514.0,0.152639]
[1727444334110,0.16628794,65524.0,65517.0,0.305263]
[1727444334375,0.17428794,65524.0,65523.0,0.231746]
[1727444334830,0.32690294,65524.0,65523.0,0.000828]
[1727444335318,0.31890294,65524.0,65523.0,0.000828]
[1727444335753,0.32090294,65524.0,65523.0,0.000828]
[1727444335936,0.34390294,65524.0,65523.0,0.000828]
[1727444336439,0.33290294,65524.0,65523.0,0.000828]
[1727444336669,0.31490294,65524.0,65523.0,0.000828]
[1727444336890,0.15728794,65524.0,65523.0,0.000828]
[1727444337334,0.16128794,65524.0,65523.0,0.153446]
[1727444337766,0.31190294,65524.0,65523.0,0.000828]
[1727444338165,0.16028794,65524.0,65523.0,0.000828]
[1727444338853,0.31290294,65524.0,65523.0,0.000828]
[1727444340012,0.56381105,65524.0,65523.0,0.000828]
[1727444340225,0.33590294,65524.0,65523.0,0.000828]
[1727444344195,0.492291,65524.0,65523.0,0.000828]
[1727444344442,0.58240148,65524.0,65523.0,0.000828]
[1727444344678,0.40341143,65524.0,65523.0,0.000828]
[1727444345168,0.81002371,65524.0,65513.0,0.000828]
[1727444345437,0.175639,65514.0,65513.0,0.000828]
[1727444345705,0.5936438,65514.0,65513.0,0.000828]
[1727444345940,0.57117021,65514.0,65513.0,0.000828]
[1727444346182,0.52613731,65514.0,65513.0,0.000828]
[1727444346422,0.57117021,65514.0,65513.0,0.000828]
[1727444346934,1.00257411,65514.0,65513.0,0.000828]
[1727444347202,0.86877908,65514.0,65513.0,0.000828]
[1727444347449,0.57946604,65514.0,65513.0,0.000828]
[1727444347663,0.58346604,65514.0,65513.0,0.000828]
[1727444347957,0.57946604,65514.0,65513.0,0.000828]
[1727444348224,0.58146604,65514.0,65513.0,0.000828]
[1727444348483,0.69397686,65514.0,65513.0,0.000828]
[1727444348744,0.69197686,65514.0,65513.0,0.000828]
[1727444348984,0.59146604,65514.0,65513.0,0.000828]
[1727444349237,0.71816517,65514.0,65513.0,0.000828]
[1727444349747,0.71816517,65514.0,65513.0,0.153469]
[1727444349748,0.41582704,65514.0,65513.0,0.153469]
[1727444350004,0.012,65514.0,65513.0,0.153469]
[1727444350253,0.012,65514.0,65513.0,0.15652151]
[1727444350504,0.026,65514.0,65513.0,0.15652151]
[1727444350728,0.012,65514.0,65513.0,0.153469]
[1727444350958,0.026,65514.0,65513.0,0.153469]
[1727444351195,0.014,65514.0,65513.0,0.153469]
[1727444351658,0.025,65514.0,65513.0,0.15652132]
[1727444351874,0.025,65514.0,65513.0,0.24752132]
[1727444352107,0.014,65514.0,65513.0,0.24752132]
[1727444352299,0.015,65514.0,65513.0,0.24852132]
[1727444352767,0.014,65514.0,65513.0,0.24752132]
[1727444352995,0.014,65514.0,65513.0,0.24752122]
[1727444353250,0.001,65514.0,65513.0,0.246469]
[1727444354238,0.001,65514.0,65513.0,0.248469]
[1727444354239,0.002,65514.0,65513.0,0.248469]
[1727444354497,0.002,65514.0,65513.0,0.327269]
[1727444354777,0.22790811,65525.0,65524.0,0.231415]
[1727444355287,0.38319605,65525.0,65524.0,0.231415]
[1727444355555,0.38319605,65525.0,65524.0,0.0788]
[1727444355556,0.15528794,65525.0,65524.0,0.0788]
[1727444356049,0.15528794,65525.0,65524.0,0.231415]
[1727444356288,0.15528794,65525.0,65524.0,0.233415]
[1727444356528,0.15528794,65525.0,65524.0,0.0788]
[1727444356796,0.16328794,65525.0,65524.0,0.0798]
[1727444357101,0.31590094,65525.0,65524.0,0.001]
[1727444357356,0.45167597,65525.0,65524.0,0.001]
[1727444357588,0.152639,65514.0,65513.0,0.001828]
[1727444357831,0.30792694,65514.0,65513.0,0.001828]
[1727444358073,0.30792694,65514.0,65513.0,0.000828]
[1727444358329,0.80761827,65514.0,65513.0,0.000828]
[1727444358600,0.80761827,65514.0,65509.0,0.0001]
[1727444358601,0.175648,65510.0,65509.0,0.0001]
[1727444358839,0.57971916,65510.0,65509.0,0.0001]
[1727444359561,0.57873776,65510.0,65509.0,0.0001]
[1727444360044,0.59073776,65510.0,65509.0,0.0011]
[1727444360289,0.70343757,65510.0,65509.0,0.0011]
[1727444360828,0.71743757,65510.0,65509.0,0.0021]
[1727444361058,0.60473776,65510.0,65509.0,0.0021]
[1727444361300,0.69492187,65510.0,65509.0,0.0021]
[1727444361554,0.35693594,65510.0,65509.0,0.002929]
[1727444361817,0.33393594,65510.0,65509.0,0.002929]
[1727444362053,0.18128794,65510.0,65509.0,0.002929]
[1727444362744,0.33393594,65510.0,65509.0,0.002929]
[1727444363293,0.18128794,65510.0,65509.0,0.002929]
[1727444363560,0.18128794,65510.0,65509.0,0.155579]
[1727444363820,0.026,65510.0,65509.0,0.155579]
[1727444364532,0.014,65510.0,65509.0,0.154579]
[1727444364775,0.022,65510.0,65509.0,0.002929]
[1727444364996,0.16328794,65510.0,65509.0,0.001929]
[1727444365234,0.30793594,65510.0,65509.0,0.000929]
[1727444365465,0.30793594,65510.0,65508.0,0.076629]
[1727444365733,0.152648,65510.0,65509.0,0.001]
[1727444365993,0.35037239,65516.0,65508.0,0.072629]
[1727444366209,0.305287,65512.0,65508.0,0.072629]
[1727444366481,0.16265,65510.0,65509.0,0.002]
[1727444366704,0.16265,65510.0,65509.0,0.001]
[1727444366705,0.15265,65510.0,65509.0,0.001]
[1727444366932,0.30793794,65510.0,65509.0,0.001]
[1727444367165,0.31293794,65510.0,65509.0,0.001]
[1727444367617,0.31293794,65510.0,65503.0,0.091]
[1727444367618,0.152651,65509.0,65505.0,0.152659]
[1727444367842,0.15528794,65508.0,65505.0,0.152659]
[1727444368070,0.15528794,65508.0,65507.0,0.152655]
[1727444368285,0.15528794,65508.0,65503.0,0.091]
[1727444368509,0.15528794,65508.0,65504.0,0.152661]
[1727444368743,0.15528794,65508.0,65504.0,0.305322]
[1727444368973,0.15528794,65508.0,65507.0,0.147655]
[1727444369214,0.15528794,65508.0,65506.0,0.0767]
[1727444369449,0.15628794,65508.0,65506.0,0.0767]
[1727444369896,0.15928794,65508.0,65507.0,0.152655]
[1727444370121,0.004,65508.0,65507.0,0.152655]
[1727444370353,0.004,65508.0,65507.0,0.15570786]
[1727444370576,0.001,65508.0,65507.0,0.152655]
[1727444371011,0.004,65508.0,65507.0,0.152655]
[1727444371261,0.001,65508.0,65507.0,0.152655]
[1727444371742,0.06772649,65516.0,65514.0,0.152638]
[1727444371983,0.20046206,65516.0,65515.0,0.152636]
[1727444372227,0.15528794,65516.0,65515.0,0.152636]
[1727444372447,0.15528794,65516.0,65514.0,0.152639]
[1727444372671,0.15528794,65516.0,65512.0,0.305286]
[1727444372672,0.20046206,65516.0,65512.0,0.305286]
[1727444372906,0.20046206,65516.0,65507.0,0.004]
[1727444373128,0.04517412,65510.0,65507.0,0.003]
[1727444373352,0.15528794,65509.0,65504.0,0.305324]
[1727444373593,0.15528794,65509.0,65504.0,0.152661]
[1727444373594,0.152654,65508.0,65504.0,0.152661]
[1727444373816,0.15528794,65509.0,65499.0,0.0807]
[1727444373817,0.15528794,65507.0,65499.0,0.0807]
[1727444374036,0.15528794,65507.0,65504.0,0.152661]
[1727444374277,0.20045089,65507.0,65504.0,0.152661]
[1727444374496,0.20045089,65507.0,65499.0,0.0807]
[1727444374497,0.04516295,65506.0,65499.0,0.0807]
[1727444374712,0.15528794,65505.0,65499.0,0.0807]
[1727444374928,0.152663,65504.0,65499.0,0.233371]
[1727444375152,0.35048295,65506.0,65499.0,0.0807]
[1727444375153,0.38319605,65503.0,65499.0,0.0807]
[1727444375381,0.15528794,65503.0,65499.0,0.0807]
[1727444375603,0.15528794,65503.0,65500.0,0.305342]
[1727444375827,0.04516295,65507.0,65500.0,0.305342]
[1727444375828,0.04516295,65507.0,65501.0,0.00305324]
[1727444376045,0.001,65505.0,65504.0,0.152662]
[1727444376237,0.001,65505.0,65504.0,0.15571486]
[1727444376484,0.38319605,65510.0,65509.0,0.15265]
[1727444376485,0.22790811,65510.0,65509.0,0.15265]
[1727444377228,0.152637,65515.0,65511.0,0.152644]
[1727444377463,0.15528794,65514.0,65508.0,0.305305]
[1727444377716,0.15528794,65514.0,65513.0,0.152641]
[1727444378024,0.04516295,65518.0,65511.0,0.30529]
[1727444378243,0.22790811,65517.0,65516.0,0.152634]
[1727444378753,0.2429419,65524.0,65519.0,0.305251]
[1727444378754,0.04516666,65523.0,65519.0,0.305251]
[1727444378994,0.2004546,65523.0,65519.0,0.305251]
[1727444379241,0.2004546,65523.0,65517.0,0.152632]
[1727444379242,0.006,65518.0,65517.0,0.152632]
[1727444379704,0.46052494,65523.0,65517.0,0.152632]
[1727444379966,0.46052494,65523.0,65512.0,0.0759]
[1727444379967,0.22790811,65518.0,65513.0,0.30528]
[1727444380223,0.152629,65519.0,65515.0,0.152636]
[1727444380478,0.152629,65519.0,65512.0,0.0759]
[1727444380479,0.152634,65516.0,65512.0,0.0759]
[1727444380725,0.15528794,65516.0,65514.0,0.152638]
[1727444380969,0.15528794,65516.0,65512.0,0.0759]
[1727444381492,0.15528794,65515.0,65512.0,0.0759]
[1727444381754,0.15528794,65515.0,65512.0,0.228542]
[1727444382027,0.30792494,65515.0,65512.0,0.0759]
[1727444382275,0.15528794,65515.0,65512.0,0.0759]
[1727444382516,0.152647,65511.0,65507.0,0.152655]
[1727444382774,0.152643,65513.0,65508.0,0.152652]
[1727444383011,0.15528794,65515.0,65506.0,0.305313]
[1727444383012,0.15528794,65512.0,65510.0,0.152647]
[1727444383254,0.15528794,65512.0,65506.0,0.305313]
[1727444383255,0.15528794,65512.0,65511.0,0.152646]
[1727444383995,0.15528794,65512.0,65505.0,0.381017]
[1727444383996,0.15528794,65512.0,65507.0,0.004]
[1727444384244,0.15528794,65512.0,65505.0,0.686336]
[1727444384245,0.15528794,65512.0,65506.0,0.305314]
[1727444384486,0.15628794,65512.0,65507.0,0.305309]
[1727444384744,0.152648,65511.0,65505.0,0.0757]
[1727444384990,0.06816562,65510.0,65495.0,0.076828]
[1727444385250,0.06816562,65510.0,65495.0,0.382191]
[1727444385251,0.152665,65503.0,65495.0,0.382191]
[1727444385489,0.15528794,65502.0,65501.0,0.152667]
[1727444385989,0.22790811,65510.0,65508.0,0.152653]
[1727444386234,0.22790811,65510.0,65509.0,0.15265]
[1727444386235,0.38319605,65510.0,65509.0,0.15265]
[1727444386962,0.15528794,65510.0,65509.0,0.15265]
[1727444387461,0.16028794,65510.0,65509.0,0.15265]
[1727444388426,0.16428794,65510.0,65509.0,0.15265]
[1727444389143,0.009,65510.0,65509.0,0.22865]
[1727444390213,0.004,65510.0,65509.0,0.23170264]
[1727444390891,0.003,65510.0,65509.0,0.23170264]
[1727444391121,0.003,65510.0,65509.0,1.11715464]
[1727444391353,0.003,65510.0,65509.0,1.166738]
[1727444391566,0.22790811,65517.0,65514.0,0.152639]
[1727444393199,0.001658,65525.0,65514.0,0.152639]
[1727444393683,0.04684698,65525.0,65514.0,0.152639]
[1727444393917,0.04684698,65525.0,65514.0,0.156639]
[1727444394133,0.04684698,65525.0,65514.0,0.159639]
[1727444394525,0.001658,65525.0,65514.0,0.159639]
[1727444395003,0.04684698,65525.0,65514.0,0.159639]
[1727444395478,0.001658,65525.0,65514.0,0.159639]
[1727444395694,0.001658,65525.0,65514.0,0.16269114]
[1727444396794,0.001658,65525.0,65514.0,0.159639]
[1727444397049,0.306889,65525.0,65514.0,0.159639]
[1727444397266,0.305264,65518.0,65514.0,0.007]
[1727444397480,0.04518898,65520.0,65514.0,0.007]
[1727444397688,0.19781998,65518.0,65514.0,0.159639]
[1727444397903,0.35044398,65519.0,65514.0,0.159639]
[1727444398115,0.38053911,65518.0,65514.0,0.007]
[1727444398350,0.152632,65517.0,65514.0,0.007]
[1727444398559,0.30957994,65515.0,65514.0,0.007]
[1727444398765,0.15694394,65515.0,65514.0,0.159639]
[1727444399201,0.15694394,65515.0,65514.0,0.007]
[1727444399422,0.15694394,65515.0,65514.0,0.159639]
[1727444399670,0.001656,65515.0,65514.0,0.159639]
[1727444399881,0.001656,65515.0,65514.0,0.155639]
[1727444400134,0.001656,65515.0,65514.0,0.153639]
[1727444400350,0.007656,65515.0,65514.0,0.154639]
[1727444400528,0.007656,65515.0,65514.0,0.153639]
[1727444400775,0.005656,65515.0,65514.0,0.152639]
[1727444401028,0.005656,65515.0,65514.0,0.45008222]
[1727444401263,0.001656,65515.0,65514.0,0.251839]
[1727444401704,0.006656,65515.0,65514.0,0.155639]
[1727444401924,0.001656,65515.0,65514.0,0.15869146]
[1727444402443,0.001656,65515.0,65514.0,0.155639]
[1727444402901,0.001656,65515.0,65514.0,0.152639]
[1727444403336,0.002656,65515.0,65514.0,0.162639]
[1727444403777,0.001656,65515.0,65514.0,0.152639]
[1727444404021,0.001656,65515.0,65514.0,0.155639]
[1727444404275,0.001656,65515.0,65514.0,0.159639]
[1727444405284,0.001656,65515.0,65514.0,0.16269122]
[1727444405505,0.001656,65515.0,65514.0,0.159639]
[1727444407972,0.001656,65515.0,65514.0,0.007]
[1727444408192,0.001656,65515.0,65514.0,0.156639]
[1727444408413,0.001656,65515.0,65514.0,0.154639]
[1727444408649,0.001656,65515.0,65514.0,0.002]
[1727444409076,0.30957994,65515.0,65514.0,0.002]
[1727444409522,0.35476892,65515.0,65514.0,0.002]
[1727444409947,0.15694394,65515.0,65514.0,0.002]
[1727444410170,0.30957994,65515.0,65514.0,0.002]
[1727444410384,0.15694394,65515.0,65514.0,0.002]
[1727444410612,0.15694394,65515.0,65511.0,0.152644]
[1727444410613,0.30958094,65515.0,65511.0,0.152644]
[1727444410837,0.159293,65515.0,65514.0,0.001]
[1727444411082,0.163293,65515.0,65514.0,0.001]
[1727444411540,0.152641,65514.0,65510.0,0.147646]
[1727444411762,0.31093,65515.0,65503.0,0.0774]
[1727444411763,0.005656,65515.0,65503.0,0.0774]
[1727444411975,0.005656,65515.0,65504.0,0.00305264]
[1727444412189,0.001656,65515.0,65514.0,0.152639]
[1727444412416,0.001656,65515.0,65514.0,0.52258247]
[1727444412675,0.005656,65515.0,65514.0,0.61953001]
[1727444413111,0.001656,65515.0,65514.0,0.61953001]
[1727444413312,0.005656,65515.0,65514.0,0.61953001]
[1727444413522,0.010656,65515.0,65514.0,0.61453001]
[1727444413747,0.005656,65515.0,65514.0,0.78481795]
[1727444414005,0.001658,65532.0,65524.0,0.254615]
[1727444414221,0.22790811,65526.0,65524.0,2.25802268]
[1727444414464,0.22790811,65526.0,65524.0,2.35327101]
[1727444414688,0.001658,65532.0,65524.0,2.35827101]
[1727444414921,0.001658,65532.0,65524.0,2.44057101]
[1727444415161,0.001658,65532.0,65524.0,2.59585895]
[1727444415400,0.001658,65532.0,65524.0,2.60085895]
[1727444415876,0.001658,65532.0,65524.0,1.46455495]
[1727444416097,0.001658,65532.0,65524.0,2.16455495]
[1727444416600,0.001658,65532.0,65524.0,2.27076512]
[1727444416601,0.002658,65525.0,65524.0,2.27076512]
[1727444416843,0.002658,65525.0,65524.0,2.28033638]
[1727444417079,0.22956611,65532.0,65529.0,0.447504]
[1727444417319,0.22956611,65532.0,65529.0,1.29779194]
[1727444417795,0.22956611,65532.0,65529.0,4.51148612]
[1727444418025,0.22956611,65532.0,65529.0,4.18165612]
[1727444418248,0.22790811,65548.0,65539.0,0.15958]
[1727444418465,0.22790811,65548.0,65547.0,0.339362]
[1727444418702,0.22790811,65548.0,65547.0,1.73234194]
[1727444418928,0.22790811,65557.0,65547.0,1.73234194]
[1727444418929,0.22790811,65557.0,65556.0,0.257541]
[1727444419375,0.22790811,65557.0,65556.0,0.252541]
[1727444419620,0.005,65567.0,65566.0,0.152518]
[1727444420973,0.011,65567.0,65566.0,0.153518]
[1727444421190,0.02,65567.0,65566.0,0.154518]
[1727444421849,0.016656,65567.0,65566.0,0.154518]
[1727444422293,0.016656,65567.0,65566.0,0.153518]
[1727444422294,0.010656,65567.0,65566.0,0.153518]
[1727444422513,0.010656,65567.0,65566.0,0.253518]
[1727444422940,0.001656,65567.0,65566.0,0.252518]
[1727444423173,0.007656,65567.0,65566.0,0.153518]
[1727444423411,0.013656,65567.0,65566.0,0.154518]
[1727444423619,0.001656,65567.0,65566.0,0.152518]
[1727444423830,0.002656,65567.0,65566.0,0.159518]
[1727444424055,0.003656,65567.0,65566.0,0.165518]
[1727444424286,0.003656,65567.0,65566.0,0.159518]
[1727444424558,0.002656,65567.0,65566.0,0.159518]
[1727444424781,0.002656,65567.0,65566.0,0.164518]
[1727444425916,0.001656,65567.0,65566.0,0.157518]
[1727444426127,0.001656,65567.0,65566.0,0.158518]
[1727444426574,0.006656,65567.0,65566.0,0.158518]
[1727444426788,0.006656,65567.0,65566.0,0.15556796]
[1727444427050,0.006656,65567.0,65566.0,0.152518]
[1727444427287,0.003656,65567.0,65566.0,0.152518]
[1727444427719,0.001656,65567.0,65566.0,0.152518]
[1727444428166,0.001656,65567.0,65566.0,0.003]
[1727444428456,0.001656,65567.0,65566.0,0.155518]
[1727444429144,0.001656,65567.0,65566.0,0.159518]
[1727444429588,0.001656,65567.0,65566.0,0.155518]
[1727444430244,0.001656,65567.0,65566.0,0.152518]
[1727444430462,0.003656,65567.0,65566.0,0.152518]
[1727444430680,0.003656,65567.0,65566.0,0.155518]
[1727444430912,0.001656,65567.0,65566.0,0.152518]
[1727444432209,0.001656,65567.0,65566.0,0.153518]
[1727444436320,0.001656,65567.0,65566.0,0.253518]
[1727444436547,0.001656,65567.0,65566.0,0.33716769]
[1727444436756,0.001656,65567.0,65566.0,0.434318]
[1727444436981,0.001656,65567.0,65566.0,0.431318]
[1727444437234,0.001656,65567.0,65566.0,0.87900712]
[1727444437460,0.002656,65567.0,65566.0,2.49671097]
[1727444437697,0.001656,65574.0,65573.0,0.344901]
[1727444437911,0.001656,65574.0,65573.0,0.59218894]
[1727444438354,0.001656,65574.0,65573.0,3.50184194]
[1727444438611,0.001656,65576.0,65575.0,0.341297]
[1727444438858,0.001656,65576.0,65575.0,0.61379]
[1727444439088,0.001656,65576.0,65575.0,0.329297]
[1727444439300,0.001656,65576.0,65575.0,0.252497]
[1727444440204,0.001656,65576.0,65575.0,0.152497]
[1727444440431,0.001656,65576.0,65575.0,0.165497]
[1727444440432,0.002656,65576.0,65575.0,0.165497]
[1727444440652,0.15794394,65576.0,65575.0,0.013]
[1727444440874,0.31043794,65576.0,65575.0,0.006]
[1727444441096,0.31043794,65576.0,65564.0,0.305045]
[1727444441360,0.31043794,65576.0,65551.0,0.305101]
[1727444441361,0.005,65568.0,65553.0,0.0802]
[1727444441636,0.15528794,65567.0,65553.0,0.0802]
[1727444441884,0.15528794,65567.0,65563.0,0.152523]
[1727444442427,0.15528794,65567.0,65554.0,0.30509]
[1727444442682,0.381496,65575.0,65553.0,0.0802]
[1727444442683,0.51454111,65579.0,65562.0,0.30505]
[1727444442914,0.003,65576.0,65571.0,0.305009]
[1727444443152,0.005,65576.0,65566.0,0.152515]
[1727444443425,0.15528794,65578.0,65573.0,0.152501]
[1727444443665,0.152496,65576.0,65571.0,0.152504]
[1727444444106,0.15528794,65578.0,65568.0,0.305022]
[1727444444322,0.157495,65576.0,65571.0,0.153506]
[1727444444580,0.160495,65576.0,65571.0,0.153506]
[1727444444787,0.152497,65575.0,65571.0,0.153506]
[1727444444965,0.152497,65575.0,65571.0,0.001]
[1727444445184,0.1525,65574.0,65571.0,0.001]
[1727444445401,0.312991,65576.0,65571.0,0.001]
[1727444445610,0.1525,65574.0,65571.0,0.001]
[1727444445820,0.009654,65576.0,65571.0,0.001]
[1727444446029,0.306646,65576.0,65568.0,0.305022]
[1727444446234,0.306646,65576.0,65570.0,0.152508]
[1727444446235,0.1525,65574.0,65570.0,0.152508]
[1727444446461,0.1525,65574.0,65571.0,0.001]
[1727444446666,0.1525,65574.0,65570.0,0.152508]
[1727444446878,0.152501,65573.0,65569.0,0.15251]
[1727444447083,0.152501,65573.0,65571.0,0.002]
[1727444447313,0.152501,65573.0,65571.0,0.001]
[1727444448000,0.152501,65573.0,65570.0,0.001]
[1727444448204,0.15528794,65572.0,65570.0,0.001]
[1727444448407,0.15528794,65572.0,65570.0,0.153508]
[1727444448613,0.15528794,65572.0,65570.0,0.001]
[1727444448846,0.30779194,65572.0,65570.0,0.001]
[1727444449303,0.30779194,65572.0,65568.0,0.152512]
[1727444449512,0.30779194,65572.0,65571.0,0.002]
[1727444449719,0.30779194,65572.0,65571.0,0.001]
[1727444450301,0.152506,65571.0,65570.0,0.001]
[1727444450645,0.30779394,65571.0,65570.0,0.001]
[1727444450860,0.30779394,65571.0,65566.0,0.02361436]
[1727444450861,0.305019,65570.0,65566.0,0.02361436]
[1727444451092,0.152515,65567.0,65566.0,0.02361436]
[1727444451310,0.30780294,65567.0,65566.0,0.02361436]
[1727444451988,0.15528794,65567.0,65566.0,0.02361436]
[1727444452209,0.014,65572.0,65566.0,0.02361436]
[1727444452210,0.014,65572.0,65568.0,0.152512]
[1727444452423,0.15528794,65571.0,65570.0,0.152508]
[1727444452638,0.15528794,65571.0,65567.0,0.30503]
[1727444452869,0.004,65570.0,65569.0,0.152511]
[1727444453292,0.15528794,65571.0,65569.0,0.152511]
[1727444453501,0.15528794,65571.0,65568.0,0.001]
[1727444453502,0.30779394,65571.0,65568.0,0.001]
[1727444453713,0.31279394,65571.0,65566.0,0.02361436]
[1727444453917,0.16028794,65571.0,65567.0,0.152513]
[1727444454112,0.006,65570.0,65569.0,0.001]
[1727444454355,0.01,65570.0,65567.0,0.152513]
[1727444454568,0.01,65570.0,65566.0,0.02361436]
[1727444454783,0.162509,65570.0,65566.0,0.17613136]
[1727444454989,0.01,65570.0,65568.0,0.152512]
[1727444455435,0.01,65570.0,65567.0,0.30503]
[1727444455654,0.006,65570.0,65568.0,0.153512]
[1727444456066,0.30779994,65569.0,65566.0,0.02361436]
[1727444456292,0.30779994,65569.0,65568.0,0.001]
[1727444457249,0.152513,65568.0,65566.0,0.02361436]
[1727444457474,0.15528794,65567.0,65566.0,0.02461436]
[1727444457941,0.30780294,65567.0,65566.0,0.02461436]
[1727444458159,0.15528794,65567.0,65566.0,0.02461436]
[1727444458645,0.30780294,65567.0,65566.0,0.02461436]
[1727444458875,0.30780294,65567.0,65566.0,0.02361436]
[1727444459320,0.15528794,65567.0,65566.0,0.02361436]
[1727444459322,0.30780294,65567.0,65566.0,0.02361436]
[1727444459797,0.31180294,65567.0,65566.0,0.02361436]
[1727444460278,0.35695485,65567.0,65566.0,0.02361436]
[1727444460557,0.35695485,65567.0,65539.0,0.0817]
[1727444460558,0.59739794,65561.0,65539.0,0.0817]
[1727444460795,0.152559,65548.0,65547.0,0.22790811]
[1727444461022,0.305115,65549.0,65535.0,0.22790811]
[1727444461023,0.305134,65545.0,65535.0,0.22790811]
[1727444461247,0.04518755,65543.0,65535.0,0.22790811]
[1727444461473,0.15528794,65542.0,65538.0,0.22790811]
[1727444461697,0.15528794,65542.0,65541.0,0.152576]
[1727444461943,0.04518755,65547.0,65541.0,0.0030514]
[1727444462160,0.04518755,65547.0,65533.0,0.0817]
[1727444462161,0.15528794,65547.0,65546.0,0.152563]
[1727444462382,0.15528794,65547.0,65545.0,0.152566]
[1727444462600,0.15528794,65547.0,65544.0,0.152569]
[1727444462833,0.22790811,65550.0,65539.0,0.001]
[1727444462834,0.15528794,65546.0,65539.0,0.001]
[1727444463137,0.152578,65540.0,65539.0,0.001]
[1727444463375,0.152578,65540.0,65524.0,0.000827]
[1727444463376,0.152587,65537.0,65531.0,0.152598]
[1727444463624,0.152594,65533.0,65528.0,0.22790811]
[1727444463865,0.15528794,65536.0,65524.0,0.000827]
[1727444463866,0.15528794,65536.0,65530.0,0.1526]
[1727444464104,0.15528794,65536.0,65526.0,0.305219]
[1727444464105,0.152594,65533.0,65526.0,0.305219]
[1727444464437,0.15528794,65536.0,65528.0,0.152604]
[1727444464646,0.15528794,65536.0,65526.0,0.305219]
[1727444464900,0.30787594,65536.0,65531.0,0.152599]
[1727444465403,0.15528794,65536.0,65534.0,0.152591]
[1727444465648,0.15528794,65536.0,65532.0,0.000827]
[1727444465869,0.30787594,65536.0,65532.0,0.000827]
[1727444466090,0.31087594,65536.0,65532.0,0.000827]
[1727444466303,0.15259,65535.0,65532.0,0.000827]
[1727444466511,0.15528794,65534.0,65532.0,0.000827]
[1727444466973,0.003,65536.0,65535.0,0.15259]
[1727444467185,0.001,65536.0,65535.0,0.15259]
[1727444467405,0.004,65536.0,65535.0,0.15259]
[1727444467627,0.003,65536.0,65535.0,0.15259]
[1727444468523,0.003,65536.0,65535.0,0.33119]
[1727444468751,0.22790811,65549.0,65541.0,0.152576]
[1727444468752,0.22790811,65542.0,65541.0,0.152576]
[1727444468986,0.22790811,65542.0,65541.0,0.252576]
[1727444469442,0.22790811,65542.0,65535.0,0.0786]
[1727444469443,0.15528794,65542.0,65535.0,0.0786]
[1727444469716,0.22790811,65549.0,65540.0,0.152578]
[1727444469717,0.15528794,65541.0,65540.0,0.152578]
[1727444469932,0.22790811,65549.0,65538.0,0.00305149]
[1727444470152,0.22790811,65549.0,65535.0,0.0866]
[1727444470153,0.22790811,65542.0,65537.0,0.30517]
[1727444470367,0.001,65536.0,65535.0,0.24619]
[1727444470581,0.001,65536.0,65535.0,0.33819]
[1727444470814,0.001,65536.0,65535.0,0.34219]
[1727444471245,0.30784894,65548.0,65537.0,0.305996]
[1727444471460,0.22790811,65542.0,65541.0,0.152576]
[1727444471675,0.15528794,65548.0,65537.0,0.000827]
[1727444471676,0.15528794,65548.0,65547.0,0.152562]
[1727444471903,0.15528794,65548.0,65537.0,0.000827]
[1727444472368,0.152569,65544.0,65537.0,0.000827]
[1727444472600,0.305125,65547.0,65540.0,0.002]
[1727444472601,0.152577,65541.0,65540.0,0.002]
[1727444472820,0.30786494,65541.0,65540.0,0.002]
[1727444473051,0.152579,65540.0,65537.0,0.000827]
[1727444473294,0.152583,65538.0,65537.0,0.001827]
[1727444473543,0.33087094,65538.0,65537.0,0.000827]
[1727444473760,0.15528794,65538.0,65537.0,0.000827]
[1727444474204,0.30787094,65538.0,65537.0,0.000827]
[1727444474424,0.15528794,65538.0,65537.0,0.000827]
[1727444474649,0.15528794,65538.0,65537.0,0.153412]
[1727444475096,0.305121,65548.0,65540.0,0.305155]
[1727444475309,0.22790811,65543.0,65540.0,0.305155]
[1727444475517,0.15528794,65542.0,65537.0,0.309993]
[1727444475750,0.15528794,65542.0,65540.0,0.152578]